[Event "EICC 2021"]
[Site "Reykjavik"]
[Date "2021.09.02"]
[Round "8.36"]
[White "Suleymanli, Aydin"]
[Black "Koellner, Ruben Gideon"]
[Result "1/2-1/2"]
[ECO "D50"]
[WhiteElo "2536"]
[BlackElo "2418"]
[Annotator "ChessBase"]
[PlyCount "94"]
[EventDate "2021.08.26"]
[EventType "swiss"]
[EventCountry "ISL"]
[Tiebreak "Cut1 Buchholz"]
[SourceTitle "playchess.com"]
[Source "ChessBase"]
[SourceQuality "1"]
[TimeControl "40/5400+30:1800+30"]

1. d4 {[%emt 0:00:01]} d5 {[%emt 0:00:06]} 2. c4 {[%emt 0:00:05]} e6 {[%emt 0:
00:03]} 3. Nc3 {[%emt 0:00:11]} Nf6 {[%emt 0:00:03]} 4. Bg5 {[%emt 0:00:10]}
Be7 {[%emt 0:00:13]} 5. e3 {[%emt 0:00:04]} dxc4 {[%emt 0:00:47]} 6. Bxc4 {
[%emt 0:00:13]} a6 {[%emt 0:00:06]} 7. Qf3 {[%emt 0:03:07]} Ra7 {[%emt 0:00:40]
} 8. a4 {[%emt 0:00:57]} b6 {[%emt 0:00:06]} 9. Nge2 {[%emt 0:00:23]} Bb7 {
[%emt 0:00:17]} 10. Qh3 {[%emt 0:00:57]} Nc6 {[%emt 0:01:50]} 11. Nf4 {[%emt 0:
04:24]} h6 {[%emt 0:05:20]} 12. Rd1 {[%emt 0:06:03]} Nb4 {[%emt 0:00:41]} 13.
O-O {[%emt 0:02:00]} O-O {[%emt 0:02:11]} 14. Bxf6 {[%emt 0:06:10]} Bxf6 {
[%emt 0:00:06]} 15. d5 {[%emt 0:00:36]} exd5 {[%emt 0:01:03]} 16. Ncxd5 {
[%emt 0:06:29]} Bxd5 {[%emt 0:00:50]} 17. Nxd5 {[%emt 0:00:54]} Nxd5 {[%emt 0:
00:15]} 18. Rxd5 {[%emt 0:00:14]} Qb8 {[%emt 0:04:48]} 19. Rfd1 {[%emt 0:05:02]
} c6 {[%emt 0:01:13]} 20. Rd7 {[%emt 0:03:13]} Rxd7 {[%emt 0:00:18]} 21. Rxd7 {
[%emt 0:00:54]} Qe8 {[%emt 0:10:15]} 22. b3 {[%emt 0:06:24]} b5 {[%emt 0:00:20]
} 23. Bd3 {[%emt 0:03:56]} Qe5 {[%emt 0:01:20]} 24. g3 {[%emt 0:00:35]} a5 {
[%emt 0:03:45]} 25. Qg4 {[%emt 0:01:14]} h5 {[%emt 0:07:58]} 26. Qf3 {[%emt 0:
00:14]} bxa4 {[%emt 0:01:52]} 27. bxa4 {[%emt 0:00:22]} Rd8 {[%emt 0:01:23]}
28. Rxd8+ {[%emt 0:00:49]} Bxd8 {[%emt 0:00:06]} 29. Qxc6 {[%emt 0:00:11]} g6 {
[%emt 0:00:13]} 30. Bc4 {[%emt 0:00:37]} Kg7 {[%emt 0:00:24]} 31. Qd7 {[%emt 0:
00:13]} Be7 {[%emt 0:00:33]} 32. Qe8 {[%emt 0:00:22]} Qf6 {[%emt 0:00:16]} 33.
Qd7 {[%emt 0:02:42]} Qd6 {[%emt 0:02:44]} 34. Qb5 {[%emt 0:00:21]} Qc5 {
[%emt 0:00:36]} 35. Qb2+ {[%emt 0:00:36]} Bf6 {[%emt 0:03:31]} 36. Qb3 {
[%emt 0:00:05]} Qe7 {[%emt 0:00:21]} 37. Qb5 {[%emt 0:00:13]} Qe5 {[%emt 0:01:
17]} 38. Qb7 {[%emt 0:00:15]} Be7 {[%emt 0:00:39]} 39. Qb3 {[%emt 0:01:22]} Qf5
{[%emt 0:01:22]} 40. h4 {[%emt 0:00:48]} Bb4 {[%emt 0:01:02]} 41. Qd1 {[%emt 0:
31:11]} Qe5 {[%emt 0:30:31]} 42. Qf3 {[%emt 0:00:18]} Qf6 {[%emt 0:00:31]} 43.
Qd1 {[%emt 0:00:25]} Qe5 {[%emt 0:00:15]} 44. Qd7 {[%emt 0:00:54]} Be7 {
[%emt 0:00:14]} 45. Qe8 {[%emt 0:00:51]} Qf6 {[%emt 0:00:09]} 46. Kg2 {[%emt 0:
01:11]} Bb4 {[%emt 0:00:57]} 47. f4 {[%emt 0:03:32]} Qe7 {[%emt 0:00:19]}
1/2-1/2

[Event "EICC 2021"]
[Site "Reykjavik"]
[Date "2021.09.02"]
[Round "8.37"]
[White "Valsecchi, Alessio"]
[Black "Juksta, Karolis"]
[Result "0-1"]
[ECO "E04"]
[WhiteElo "2527"]
[BlackElo "2438"]
[Annotator "ChessBase"]
[PlyCount "80"]
[EventDate "2021.08.26"]
[EventType "swiss"]
[EventCountry "ISL"]
[Tiebreak "Cut1 Buchholz"]
[SourceTitle "playchess.com"]
[Source "ChessBase"]
[SourceQuality "1"]
[TimeControl "40/5400+30:1800+30"]

1. Nf3 {[%emt 0:00:07]} d5 {[%emt 0:00:10]} 2. d4 {[%emt 0:00:15]} e6 {[%emt 0:
02:12]} 3. c4 {[%emt 0:00:19]} Nf6 {[%emt 0:01:49]} 4. g3 {[%emt 0:00:28]} dxc4
{[%emt 0:00:54]} 5. Bg2 {[%emt 0:00:19]} a6 {[%emt 0:01:16]} 6. O-O {[%emt 0:
00:12]} Nc6 {[%emt 0:00:50]} 7. Qd2 {[%emt 0:00:18]} Bb4 {[%emt 0:15:52]} 8.
Qc2 {[%emt 0:00:17]} O-O {[%emt 0:02:47]} 9. Rd1 {[%emt 0:09:37]} Qe7 {[%emt 0:
04:41]} 10. Qxc4 {[%emt 0:07:23]} Rd8 {[%emt 0:08:12]} 11. Bg5 {[%emt 0:02:45]}
h6 {[%emt 0:06:25]} 12. Bxf6 {[%emt 0:01:48]} Qxf6 {[%emt 0:00:21]} 13. Nc3 {
[%emt 0:01:34]} Bxc3 {[%emt 0:11:38]} 14. Qxc3 {[%emt 0:04:57]} Qe7 {[%emt 0:
13:08]} 15. Rac1 {[%emt 0:06:18]} Bd7 {[%emt 0:03:03]} 16. a3 {[%emt 0:05:18]}
Be8 {[%emt 0:02:31]} 17. e3 {[%emt 0:01:50]} Rac8 {[%emt 0:01:39]} 18. Ne1 {
[%emt 0:01:45]} Rd6 {[%emt 0:02:27]} 19. Nd3 {[%emt 0:03:21]} b6 {[%emt 0:02:
21]} 20. f4 {[%emt 0:03:44]} a5 {[%emt 0:02:33]} 21. Ne5 {[%emt 0:08:35]} Na7 {
[%emt 0:10:02]} 22. Bh3 {[%emt 0:15:05]} c5 {[%emt 0:02:25]} 23. d5 {[%emt 0:
07:58]} Rcd8 {[%emt 0:00:55]} 24. e4 {[%emt 0:00:07]} exd5 {[%emt 0:01:03]} 25.
exd5 {[%emt 0:00:06]} Rxd5 {[%emt 0:00:50]} 26. Rxd5 {[%emt 0:00:08]} Rxd5 {
[%emt 0:00:03]} 27. Re1 {[%emt 0:00:07]} Qd8 {[%emt 0:00:54]} 28. Qe3 {[%emt 0:
00:28]} Rd1 {[%emt 0:00:46]} 29. Bd7 {[%emt 0:05:33]} Rxe1+ {[%emt 0:01:00]}
30. Qxe1 {[%emt 0:00:02]} Bxd7 {[%emt 0:00:27]} 31. Qd1 {[%emt 0:00:42]} Nc8 {
[%emt 0:02:01]} 32. Nxd7 {[%emt 0:01:19]} b5 {[%emt 0:00:19]} 33. Qd3 {[%emt 0:
04:22]} c4 {[%emt 0:00:19]} 34. Qd4 {[%emt 0:02:27]} b4 {[%emt 0:01:03]} 35.
axb4 {[%emt 0:01:24]} axb4 {[%emt 0:00:01]} 36. Kf2 {[%emt 0:01:49]} c3 {
[%emt 0:00:13]} 37. bxc3 {[%emt 0:00:05]} b3 {[%emt 0:01:11]} 38. f5 {[%emt 0:
00:59]} b2 {[%emt 0:00:28]} 39. Qd3 {[%emt 0:00:36]} Nb6 {[%emt 0:00:33]} 40.
Qb5 {[%emt 0:00:31]} Qxd7 {[%emt 0:00:25]} 0-1

[Event "EICC 2021"]
[Site "Reykjavik"]
[Date "2021.09.02"]
[Round "8.38"]
[White "Ferreira, Jorge Viterbo"]
[Black "Kanyamarala, Tarun"]
[Result "1/2-1/2"]
[ECO "B31"]
[WhiteElo "2520"]
[BlackElo "2369"]
[Annotator "ChessBase"]
[PlyCount "83"]
[EventDate "2021.08.26"]
[EventType "swiss"]
[EventCountry "ISL"]
[Tiebreak "Cut1 Buchholz"]
[SourceTitle "playchess.com"]
[Source "ChessBase"]
[SourceQuality "1"]
[TimeControl "40/5400+30:1800+30"]

1. e4 {[%emt 0:00:03]} c5 {[%emt 0:00:08]} 2. Nf3 {[%emt 0:00:08]} Nc6 {
[%emt 0:00:10]} 3. Bb5 {[%emt 0:00:11]} g6 {[%emt 0:00:11]} 4. O-O {[%emt 0:00:
26]} Bg7 {[%emt 0:00:23]} 5. c3 {[%emt 0:00:13]} e5 {[%emt 0:00:28]} 6. d4 {
[%emt 0:00:14]} cxd4 {[%emt 0:00:40]} 7. cxd4 {[%emt 0:00:12]} exd4 {[%emt 0:
00:13]} 8. Bf4 {[%emt 0:00:13]} a6 {[%emt 0:01:40]} 9. Ba4 {[%emt 0:00:26]}
Nge7 {[%emt 0:00:51]} 10. Bd6 {[%emt 0:00:25]} b5 {[%emt 0:01:32]} 11. Bb3 {
[%emt 0:00:27]} Bb7 {[%emt 0:01:09]} 12. Ng5 {[%emt 0:01:04]} O-O {[%emt 0:03:
00]} 13. Qf3 {[%emt 0:00:17]} Qe8 {[%emt 0:06:18]} 14. Qg3 {[%emt 0:00:22]} Na5
{[%emt 0:09:33]} 15. Nxh7 {[%emt 0:10:33]} Kxh7 {[%emt 0:18:30]} 16. Qh4+ {
[%emt 0:00:36]} Kg8 {[%emt 0:02:16]} 17. Bxe7 {[%emt 0:02:18]} Nxb3 {[%emt 0:
00:13]} 18. axb3 {[%emt 0:00:19]} g5 {[%emt 0:01:39]} 19. Qxg5 {[%emt 0:24:18]}
f6 {[%emt 0:00:55]} 20. Qc5 {[%emt 0:00:29]} Rf7 {[%emt 0:00:19]} 21. Qc7 {
[%emt 0:04:35]} Bc6 {[%emt 0:05:16]} 22. Bc5 {[%emt 0:02:37]} Qxe4 {[%emt 0:05:
22]} 23. Qg3 {[%emt 0:02:15]} Qd5 {[%emt 0:17:01]} 24. b4 {[%emt 0:05:05]} d6 {
[%emt 0:13:46]} 25. Bxd6 {[%emt 0:01:10]} Re8 {[%emt 0:01:11]} 26. Nd2 {
[%emt 0:02:50]} Re6 {[%emt 0:01:12]} 27. Bf4 {[%emt 0:08:09]} f5 {[%emt 0:00:
29]} 28. Nf3 {[%emt 0:01:53]} Rff6 {[%emt 0:01:03]} 29. Rfc1 {[%emt 0:11:06]}
Rg6 {[%emt 0:02:46]} 30. Ng5 {[%emt 0:00:09]} Bf8 {[%emt 0:00:55]} 31. Re1 {
[%emt 0:06:01]} Rxe1+ {[%emt 0:03:13]} 32. Rxe1 {[%emt 0:00:10]} Bg7 {[%emt 0:
00:11]} 33. h4 {[%emt 0:01:13]} Bf6 {[%emt 0:00:53]} 34. Re6 {[%emt 0:02:06]}
Qxe6 {[%emt 0:01:14]} 35. Nxe6 {[%emt 0:00:59]} Rxg3 {[%emt 0:00:17]} 36. fxg3
{[%emt 0:00:22]} d3 {[%emt 0:00:27]} 37. Kf2 {[%emt 0:00:55]} Bxb2 {[%emt 0:00:
31]} 38. Ke3 {[%emt 0:02:46]} Bc3 {[%emt 0:00:17]} 39. Nc5 {[%emt 0:00:38]} d2
{[%emt 0:02:30]} 40. Ke2 {[%emt 0:00:07]} Bxb4 {[%emt 0:00:24]} 41. Nxa6 {
[%emt 0:30:19]} Be7 {[%emt 0:03:55]} 42. Bxd2 {[%emt 0:00:00]} 1/2-1/2

[Event "EICC 2021"]
[Site "Reykjavik"]
[Date "2021.09.02"]
[Round "8.39"]
[White "Aizenberg, Benny"]
[Black "Hjartarson, Johann"]
[Result "1-0"]
[ECO "B42"]
[WhiteElo "2309"]
[BlackElo "2519"]
[Annotator "ChessBase"]
[PlyCount "99"]
[EventDate "2021.08.26"]
[EventType "swiss"]
[EventCountry "ISL"]
[Tiebreak "Cut1 Buchholz"]
[SourceTitle "playchess.com"]
[Source "ChessBase"]
[SourceQuality "1"]
[TimeControl "40/5400+30:1800+30"]

1. e4 {[%emt 0:00:02]} c5 {[%emt 0:00:23]} 2. Nf3 {[%emt 0:00:02]} e6 {[%emt 0:
00:09]} 3. d4 {[%emt 0:00:03]} cxd4 {[%emt 0:00:05]} 4. Nxd4 {[%emt 0:00:02]}
a6 {[%emt 0:00:34]} 5. Bd3 {[%emt 0:00:04]} Bc5 {[%emt 0:00:17]} 6. Nb3 {
[%emt 0:00:05]} Be7 {[%emt 0:00:08]} 7. Be3 {[%emt 0:01:05]} d6 {[%emt 0:01:03]
} 8. N1d2 {[%emt 0:05:49]} Nf6 {[%emt 0:01:36]} 9. f4 {[%emt 0:01:11]} O-O {
[%emt 0:02:13]} 10. Qf3 {[%emt 0:05:33]} Nc6 {[%emt 0:02:15]} 11. a3 {[%emt 0:
03:26]} e5 {[%emt 0:07:40]} 12. f5 {[%emt 0:04:32]} d5 {[%emt 0:00:39]} 13.
O-O-O {[%emt 0:03:07]} d4 {[%emt 0:18:42]} 14. Bf2 {[%emt 0:02:02]} a5 {
[%emt 0:02:35]} 15. Nb1 {[%emt 0:03:28]} a4 {[%emt 0:04:31]} 16. N3d2 {[%emt 0:
00:08]} b5 {[%emt 0:00:42]} 17. g4 {[%emt 0:02:47]} b4 {[%emt 0:07:14]} 18. Nc4
{[%emt 0:02:39]} Nd7 {[%emt 0:02:56]} 19. h4 {[%emt 0:02:29]} f6 {[%emt 0:05:
31]} 20. Rdg1 {[%emt 0:03:07]} Ba6 {[%emt 0:02:14]} 21. g5 {[%emt 0:03:17]}
fxg5 {[%emt 0:02:23]} 22. hxg5 {[%emt 0:02:46]} Bxg5+ {[%emt 0:00:17]} 23. Kd1
{[%emt 0:00:02]} h6 {[%emt 0:02:44]} 24. Be1 {[%emt 0:02:47]} bxa3 {[%emt 0:05:
03]} 25. Nbxa3 {[%emt 0:01:16]} Nf6 {[%emt 0:04:57]} 26. Bd2 {[%emt 0:04:24]}
Nh7 {[%emt 0:01:04]} 27. Rh5 {[%emt 0:04:52]} Ra7 {[%emt 0:05:39]} 28. Qh3 {
[%emt 0:04:21]} Qf6 {[%emt 0:05:52]} 29. Nb6 {[%emt 0:01:45]} Bxd2 {[%emt 0:03:
55]} 30. Kxd2 {[%emt 0:05:35]} Bxd3 {[%emt 0:01:25]} 31. Nd5 {[%emt 0:04:05]}
Qd8 {[%emt 0:03:16]} 32. Rxh6 {[%emt 0:07:21]} Bxe4 {[%emt 0:00:10]} 33. Rxh7 {
[%emt 0:00:22]} Qa5+ {[%emt 0:00:41]} 34. Kc1 {[%emt 0:00:49]} Rxf5 {[%emt 0:
02:32]} 35. Rh8+ {[%emt 0:02:02]} Kf7 {[%emt 0:00:03]} 36. Qg4 {[%emt 0:00:58]}
Ke6 {[%emt 0:01:09]} 37. Qxe4 {[%emt 0:10:20]} Qxd5 {[%emt 0:00:12]} 38. Rh6+ {
[%emt 0:02:16]} Rf6 {[%emt 0:00:59]} 39. Rxf6+ {[%emt 0:01:11]} gxf6 {[%emt 0:
00:04]} 40. Qg4+ {[%emt 0:00:29]} Kd6 {[%emt 0:01:30]} 41. Qc8 {[%emt 0:08:01]}
Rf7 {[%emt 0:02:42]} 42. Qa6 {[%emt 0:02:50]} Ke6 {[%emt 0:10:40]} 43. Nc4 {
[%emt 0:01:23]} Rc7 {[%emt 0:06:17]} 44. Nb6 {[%emt 0:01:23]} Qa5 {[%emt 0:02:
01]} 45. Qc4+ {[%emt 0:01:19]} Kd6 {[%emt 0:00:21]} 46. Rf1 {[%emt 0:00:40]} f5
{[%emt 0:02:36]} 47. Rh1 {[%emt 0:01:15]} e4 {[%emt 0:06:57]} 48. Rh6+ {
[%emt 0:00:13]} Ke5 {[%emt 0:00:07]} 49. Qe6+ {[%emt 0:00:11]} Kf4 {[%emt 0:00:
07]} 50. Nd5+ {[%emt 0:00:02]} 1-0

[Event "EICC 2021"]
[Site "Reykjavik"]
[Date "2021.09.02"]
[Round "8.40"]
[White "Samadov, Read"]
[Black "Steingrimsson, Hedinn"]
[Result "1/2-1/2"]
[ECO "D27"]
[WhiteElo "2360"]
[BlackElo "2519"]
[Annotator "ChessBase"]
[PlyCount "68"]
[EventDate "2021.08.26"]
[EventType "swiss"]
[EventCountry "ISL"]
[Tiebreak "Cut1 Buchholz"]
[SourceTitle "playchess.com"]
[Source "ChessBase"]
[SourceQuality "1"]
[TimeControl "40/5400+30:1800+30"]

1. d4 {[%emt 0:00:04]} d5 {[%emt 0:01:05]} 2. c4 {[%emt 0:00:08]} dxc4 {
[%emt 0:00:02]} 3. e3 {[%emt 0:00:31]} Nf6 {[%emt 0:00:12]} 4. Bxc4 {[%emt 0:
00:47]} e6 {[%emt 0:00:02]} 5. Nf3 {[%emt 0:00:18]} a6 {[%emt 0:00:09]} 6. O-O
{[%emt 0:01:51]} c5 {[%emt 0:00:06]} 7. dxc5 {[%emt 0:01:35]} Bxc5 {[%emt 0:01:
46]} 8. Qxd8+ {[%emt 0:00:28]} Kxd8 {[%emt 0:00:03]} 9. Be2 {[%emt 0:04:57]}
Nbd7 {[%emt 0:09:18]} 10. Nbd2 {[%emt 0:04:20]} Ke7 {[%emt 0:03:31]} 11. Nc4 {
[%emt 0:11:46]} a5 {[%emt 0:04:19]} 12. Bd2 {[%emt 0:07:23]} b6 {[%emt 0:01:49]
} 13. Rfd1 {[%emt 0:02:22]} Bb7 {[%emt 0:01:47]} 14. Bc3 {[%emt 0:03:16]} Rhc8
{[%emt 0:02:49]} 15. Rac1 {[%emt 0:09:07]} Bd5 {[%emt 0:00:04]} 16. a4 {
[%emt 0:02:45]} h6 {[%emt 0:10:35]} 17. Nfd2 {[%emt 0:05:07]} g5 {[%emt 0:01:
46]} 18. Bf3 {[%emt 0:02:19]} g4 {[%emt 0:07:52]} 19. Bxf6+ {[%emt 0:03:29]}
Nxf6 {[%emt 0:00:13]} 20. Bxd5 {[%emt 0:00:57]} Nxd5 {[%emt 0:11:50]} 21. Kf1 {
[%emt 0:06:08]} Rc7 {[%emt 0:06:03]} 22. b3 {[%emt 0:10:54]} Rac8 {[%emt 0:04:
05]} 23. Nb1 {[%emt 0:06:43]} Bb4 {[%emt 0:05:37]} 24. Rd4 {[%emt 0:03:12]} h5
{[%emt 0:02:22]} 25. Rcd1 {[%emt 0:02:11]} Rb8 {[%emt 0:03:23]} 26. Nba3 {
[%emt 0:01:35]} Nc3 {[%emt 0:01:12]} 27. Rc1 {[%emt 0:01:46]} Rbc8 {[%emt 0:05:
38]} 28. Ra1 {[%emt 0:03:31]} Rb8 {[%emt 0:09:01]} 29. Rd3 {[%emt 0:01:00]} f5
{[%emt 0:04:47]} 30. Rc1 {[%emt 0:00:52]} Ne4 {[%emt 0:00:18]} 31. Nb5 {
[%emt 0:01:00]} Rcc8 {[%emt 0:00:49]} 32. Rdd1 {[%emt 0:00:54]} Nc5 {[%emt 0:
00:35]} 33. Na7 {[%emt 0:01:06]} Rc7 {[%emt 0:00:53]} 34. Nb5 {[%emt 0:00:06]}
Rcc8 {[%emt 0:01:02]} 1/2-1/2

[Event "EICC 2021"]
[Site "Reykjavik"]
[Date "2021.09.03"]
[Round "9.25"]
[White "Quparadze, Giga"]
[Black "Martinovic, Sasa"]
[Result "1-0"]
[ECO "C07"]
[WhiteElo "2476"]
[BlackElo "2548"]
[Annotator "ChessBase"]
[PlyCount "79"]
[EventDate "2021.08.26"]
[EventType "swiss"]
[EventCountry "ISL"]
[Tiebreak "Cut1 Buchholz"]
[SourceTitle "playchess.com"]
[Source "ChessBase"]
[SourceQuality "1"]
[TimeControl "40/5400+30:1800+30"]

1. e4 {[%emt 0:00:02]} e6 {[%emt 0:00:03]} 2. d4 {[%emt 0:00:06]} d5 {[%emt 0:
00:04]} 3. Nd2 {[%emt 0:00:05]} c5 {[%emt 0:00:05]} 4. Ngf3 {[%emt 0:00:06]}
cxd4 {[%emt 0:00:07]} 5. Nxd4 {[%emt 0:00:04]} Nc6 {[%emt 0:00:13]} 6. Bb5 {
[%emt 0:00:06]} Bd7 {[%emt 0:00:07]} 7. Nxc6 {[%emt 0:00:05]} bxc6 {[%emt 0:00:
07]} 8. Bd3 {[%emt 0:00:05]} Bd6 {[%emt 0:00:32]} 9. Qe2 {[%emt 0:00:06]} e5 {
[%emt 0:00:18]} 10. c4 {[%emt 0:00:42]} d4 {[%emt 0:00:20]} 11. O-O {[%emt 0:
00:08]} c5 {[%emt 0:00:15]} 12. f4 {[%emt 0:00:08]} Ne7 {[%emt 0:00:41]} 13.
fxe5 {[%emt 0:01:48]} Bxe5 {[%emt 0:00:14]} 14. Nf3 {[%emt 0:01:49]} Nc6 {
[%emt 0:01:20]} 15. Nxe5 {[%emt 0:03:20]} Nxe5 {[%emt 0:00:05]} 16. Bf4 {
[%emt 0:00:04]} Qe7 {[%emt 0:02:05]} 17. a3 {[%emt 0:00:08]} O-O {[%emt 0:04:
10]} 18. Bxe5 {[%emt 0:00:06]} Qxe5 {[%emt 0:00:04]} 19. b4 {[%emt 0:00:05]}
Rae8 {[%emt 0:06:06]} 20. Qd2 {[%emt 0:00:07]} Re7 {[%emt 0:10:14]} 21. b5 {
[%emt 0:00:20]} Rfe8 {[%emt 0:01:48]} 22. a4 {[%emt 0:00:13]} Bc8 {[%emt 0:00:
29]} 23. a5 {[%emt 0:00:08]} Bb7 {[%emt 0:01:23]} 24. Rae1 {[%emt 0:00:56]} Qc7
{[%emt 0:06:24]} 25. Rf4 {[%emt 0:00:25]} Re5 {[%emt 0:00:46]} 26. Rf5 {
[%emt 0:00:20]} R5e6 {[%emt 0:06:14]} 27. Rf4 {[%emt 0:04:38]} g6 {[%emt 0:03:
23]} 28. a6 {[%emt 0:01:04]} Ba8 {[%emt 0:02:49]} 29. Re2 {[%emt 0:01:28]} Qe7
{[%emt 0:23:54]} 30. g4 {[%emt 0:03:03]} Qg5 {[%emt 0:01:16]} 31. Ref2 {
[%emt 0:01:57]} R8e7 {[%emt 0:05:03]} 32. Qe2 {[%emt 0:00:44]} Re5 {[%emt 0:08:
35]} 33. Qf3 {[%emt 0:00:36]} Rf5 {[%emt 0:11:24]} 34. Rxf5 {[%emt 0:00:35]}
gxf5 {[%emt 0:00:02]} 35. Qxf5 {[%emt 0:00:11]} Qc1+ {[%emt 0:02:33]} 36. Bf1 {
[%emt 0:00:37]} d3 {[%emt 0:03:18]} 37. Qc8+ {[%emt 0:01:12]} Kg7 {[%emt 0:00:
02]} 38. Qd8 {[%emt 0:01:08]} Re6 {[%emt 0:02:00]} 39. Qc7 {[%emt 0:00:21]} Rf6
{[%emt 0:00:50]} 40. Qe5 {[%emt 0:00:08]} 1-0

[Event "EICC 2021"]
[Site "Reykjavik"]
[Date "2021.09.03"]
[Round "9.32"]
[White "Dragnev, Valentin"]
[Black "Grigorian, Spartak"]
[Result "0-1"]
[ECO "B90"]
[WhiteElo "2557"]
[BlackElo "2448"]
[Annotator "ChessBase"]
[PlyCount "109"]
[EventDate "2021.08.26"]
[EventType "swiss"]
[EventCountry "ISL"]
[Tiebreak "Cut1 Buchholz"]
[SourceTitle "playchess.com"]
[Source "ChessBase"]
[SourceQuality "1"]
[TimeControl "40/5400+30:1800+30"]

1. e4 {[%emt 0:00:07]} c5 {[%emt 0:00:06]} 2. Nf3 {[%emt 0:00:05]} d6 {[%emt 0:
00:04]} 3. d4 {[%emt 0:00:09]} cxd4 {[%emt 0:00:04]} 4. Nxd4 {[%emt 0:00:05]}
Nf6 {[%emt 0:00:03]} 5. Nc3 {[%emt 0:00:08]} a6 {[%emt 0:00:02]} 6. Bd3 {
[%emt 0:00:06]} e5 {[%emt 0:11:06]} 7. Nde2 {[%emt 0:00:26]} Be7 {[%emt 0:03:
34]} 8. O-O {[%emt 0:00:18]} b5 {[%emt 0:03:47]} 9. a4 {[%emt 0:15:08]} b4 {
[%emt 0:00:56]} 10. Nd5 {[%emt 0:00:20]} Nxd5 {[%emt 0:01:38]} 11. exd5 {
[%emt 0:00:05]} O-O {[%emt 0:04:36]} 12. Bd2 {[%emt 0:01:36]} a5 {[%emt 0:01:
39]} 13. c3 {[%emt 0:00:21]} bxc3 {[%emt 0:17:36]} 14. Nxc3 {[%emt 0:00:36]} f5
{[%emt 0:04:37]} 15. Rc1 {[%emt 0:02:50]} Na6 {[%emt 0:02:56]} 16. f4 {[%emt 0:
11:59]} Nc5 {[%emt 0:06:51]} 17. Bc4 {[%emt 0:02:59]} Ba6 {[%emt 0:06:52]} 18.
Nb5 {[%emt 0:15:15]} Ne4 {[%emt 0:02:42]} 19. Kh1 {[%emt 0:08:51]} Bf6 {
[%emt 0:01:37]} 20. Rc2 {[%emt 0:02:58]} Qb6 {[%emt 0:14:38]} 21. Qe1 {[%emt 0:
08:21]} Nxd2 {[%emt 0:00:02]} 22. Qxd2 {[%emt 0:00:24]} exf4 {[%emt 0:01:02]}
23. Na3 {[%emt 0:06:29]} Rac8 {[%emt 0:07:26]} 24. Bxa6 {[%emt 0:01:37]} Qxa6 {
[%emt 0:00:47]} 25. Nb5 {[%emt 0:00:29]} Be5 {[%emt 0:01:40]} 26. Rfc1 {
[%emt 0:04:25]} Rxc2 {[%emt 0:00:22]} 27. Rxc2 {[%emt 0:00:15]} Qb6 {[%emt 0:
01:45]} 28. b3 {[%emt 0:00:54]} Re8 {[%emt 0:02:43]} 29. Nc7 {[%emt 0:01:09]}
Rc8 {[%emt 0:01:26]} 30. Ne6 {[%emt 0:02:32]} Rb8 {[%emt 0:00:04]} 31. Qc1 {
[%emt 0:05:09]} Qxb3 {[%emt 0:01:11]} 32. Ng5 {[%emt 0:00:40]} Qb7 {[%emt 0:01:
20]} 33. h4 {[%emt 0:00:40]} h6 {[%emt 0:00:24]} 34. Rc7 {[%emt 0:00:37]} Qa8 {
[%emt 0:00:56]} 35. Ne6 {[%emt 0:00:28]} Re8 {[%emt 0:00:36]} 36. Rc6 {[%emt 0:
02:19]} Qa7 {[%emt 0:00:33]} 37. Rc8 {[%emt 0:00:29]} Qd7 {[%emt 0:00:26]} 38.
Rxe8+ {[%emt 0:04:27]} Qxe8 {[%emt 0:00:00]} 39. Qc6 {[%emt 0:00:07]} Qe7 {
[%emt 0:01:17]} 40. Qc8+ {[%emt 0:00:25]} Kf7 {[%emt 0:00:24]} 41. Kg1 {
[%emt 0:11:29]} g5 {[%emt 0:14:39]} 42. h5 {[%emt 0:02:34]} g4 {[%emt 0:00:27]}
43. Kf1 {[%emt 0:08:25]} f3 {[%emt 0:04:01]} 44. gxf3 {[%emt 0:01:13]} gxf3 {
[%emt 0:00:16]} 45. Qa8 {[%emt 0:04:36]} Bc3 {[%emt 0:01:23]} 46. Qb8 {[%emt 0:
00:27]} Bg7 {[%emt 0:01:33]} 47. Qb3 {[%emt 0:06:51]} Qf6 {[%emt 0:03:23]} 48.
Qb7+ {[%emt 0:01:00]} Kg8 {[%emt 0:00:16]} 49. Nxg7 {[%emt 0:00:35]} Qe5 {
[%emt 0:01:42]} 50. Qc8+ {[%emt 0:01:14]} Kxg7 {[%emt 0:00:30]} 51. Kf2 {
[%emt 0:00:39]} Qe2+ {[%emt 0:03:22]} 52. Kg3 {[%emt 0:00:02]} Qg2+ {[%emt 0:
01:24]} 53. Kf4 {[%emt 0:00:01]} Qg4+ {[%emt 0:00:10]} 54. Ke3 {[%emt 0:00:04]}
f4+ {[%emt 0:00:03]} 55. Kd4 {[%emt 0:00:13]} 0-1

[Event "EICC 2021"]
[Site "Reykjavik"]
[Date "2021.09.03"]
[Round "9.33"]
[White "Kulaots, Kaido"]
[Black "Petkov, Momchil"]
[Result "0-1"]
[ECO "B90"]
[WhiteElo "2548"]
[BlackElo "2443"]
[Annotator "ChessBase"]
[PlyCount "88"]
[EventDate "2021.08.26"]
[EventType "swiss"]
[EventCountry "ISL"]
[Tiebreak "Cut1 Buchholz"]
[SourceTitle "playchess.com"]
[Source "ChessBase"]
[SourceQuality "1"]
[TimeControl "40/5400+30:1800+30"]

1. e4 {[%emt 0:00:46]} c5 {[%emt 0:00:06]} 2. Nf3 {[%emt 0:00:17]} d6 {[%emt 0:
00:09]} 3. d4 {[%emt 0:00:38]} cxd4 {[%emt 0:00:10]} 4. Nxd4 {[%emt 0:00:04]}
Nf6 {[%emt 0:00:11]} 5. Nc3 {[%emt 0:00:09]} a6 {[%emt 0:00:09]} 6. Be3 {
[%emt 0:00:37]} e5 {[%emt 0:00:26]} 7. Nb3 {[%emt 0:00:10]} Be7 {[%emt 0:00:18]
} 8. f3 {[%emt 0:01:42]} Be6 {[%emt 0:00:21]} 9. Qd2 {[%emt 0:00:13]} h5 {
[%emt 0:00:21]} 10. Nd5 {[%emt 0:05:44]} Nxd5 {[%emt 0:00:48]} 11. exd5 {
[%emt 0:00:12]} Bf5 {[%emt 0:00:06]} 12. Be2 {[%emt 0:05:58]} a5 {[%emt 0:00:
19]} 13. a4 {[%emt 0:02:13]} O-O {[%emt 0:06:00]} 14. O-O {[%emt 0:00:17]} Nd7
{[%emt 0:01:45]} 15. f4 {[%emt 0:08:08]} exf4 {[%emt 0:00:30]} 16. Bxf4 {
[%emt 0:04:24]} Rc8 {[%emt 0:08:56]} 17. Nd4 {[%emt 0:20:25]} Bg6 {[%emt 0:02:
42]} 18. Kh1 {[%emt 0:01:08]} Nc5 {[%emt 0:22:52]} 19. Bb5 {[%emt 0:14:08]} Bf6
{[%emt 0:06:01]} 20. Rae1 {[%emt 0:05:09]} h4 {[%emt 0:03:49]} 21. Re3 {
[%emt 0:10:05]} Ne4 {[%emt 0:09:41]} 22. Qd1 {[%emt 0:00:43]} Rc5 {[%emt 0:03:
24]} 23. c3 {[%emt 0:08:17]} Rxd5 {[%emt 0:08:20]} 24. Qe2 {[%emt 0:07:58]}
Bxd4 {[%emt 0:04:54]} 25. Rxe4 {[%emt 0:00:05]} Be5 {[%emt 0:01:56]} 26. Re3 {
[%emt 0:00:27]} Bxf4 {[%emt 0:00:45]} 27. Rxf4 {[%emt 0:00:02]} Qg5 {[%emt 0:
02:22]} 28. Rf1 {[%emt 0:01:46]} Re5 {[%emt 0:01:07]} 29. Re1 {[%emt 0:00:27]}
f6 {[%emt 0:04:01]} 30. Qf3 {[%emt 0:00:38]} b6 {[%emt 0:03:23]} 31. Kg1 {
[%emt 0:00:09]} Kh7 {[%emt 0:00:43]} 32. Qf2 {[%emt 0:00:20]} Bf5 {[%emt 0:04:
12]} 33. Rxe5 {[%emt 0:00:37]} fxe5 {[%emt 0:00:14]} 34. Qxb6 {[%emt 0:01:27]}
Be4 {[%emt 0:00:22]} 35. g3 {[%emt 0:01:19]} Qd2 {[%emt 0:01:29]} 36. Rxe4 {
[%emt 0:00:19]} Qd1+ {[%emt 0:00:04]} 37. Kg2 {[%emt 0:00:23]} Qf3+ {[%emt 0:
00:08]} 38. Kh3 {[%emt 0:00:28]} Qxe4 {[%emt 0:00:11]} 39. Qxd6 {[%emt 0:00:07]
} Qf5+ {[%emt 0:00:57]} 40. g4 {[%emt 0:01:17]} Qf3+ {[%emt 0:01:28]} 41. Kxh4
{[%emt 0:30:02]} g5+ {[%emt 0:30:44]} 42. Kh5 {[%emt 0:00:34]} Qf7+ {[%emt 0:
00:14]} 43. Kxg5 {[%emt 0:00:05]} Rg8+ {[%emt 0:00:42]} 44. Kh4 {[%emt 0:00:11]
} Qf2+ {[%emt 0:00:04]} 0-1